bitfinex/quotes_BTCUSD_20251031
["timestamp","ask_amount","ask_price","bid_price","bid_amount"]
[1761925937516,0.21166924,110510.0,110500.0,0.19708532]
[1761925937724,0.21166924,110510.0,110500.0,0.01608985]
[1761925938150,0.01524015,110510.0,110500.0,0.70017074]
[1761925938359,0.18202732,110510.0,110500.0,0.51917527]
[1761925938567,0.19741732,110510.0,110500.0,0.49468006]
[1761925938778,0.19741732,110510.0,110500.0,0.19589511]
[1761925939013,0.18099547,110500.0,110490.0,0.18660109]
[1761925939225,0.18099547,110500.0,110480.0,0.69234332]
[1761925939226,0.18101185,110490.0,110480.0,0.2125629]
[1761925939654,0.18101185,110490.0,110480.0,0.2285429]
[1761925939829,0.20378547,110500.0,110480.0,0.2285429]
[1761925940063,0.18101185,110490.0,110480.0,0.2285429]
[1761925940275,0.18101185,110490.0,110480.0,0.2276379]
[1761925940902,0.20378547,110500.0,110480.0,0.2276379]
[1761925941104,0.19761547,110500.0,110490.0,0.19699185]
[1761925941352,0.18101185,110490.0,110480.0,0.2146579]
[1761925941558,0.18101185,110490.0,110480.0,0.2116579]
[1761925941768,0.18101185,110490.0,110480.0,0.2276379]
[1761925941983,0.23271796,110490.0,110480.0,0.001]
[1761925942201,0.23181185,110490.0,110480.0,0.001]
[1761925942408,0.20902185,110490.0,110480.0,0.19800824]
[1761925942829,0.21002185,110490.0,110480.0,0.20300824]
[1761925943044,0.21002185,110490.0,110480.0,0.02198]
[1761925943247,0.20902185,110490.0,110480.0,0.01598]
[1761925943676,0.21302185,110490.0,110480.0,0.01698]
[1761925943896,0.005,110490.0,110480.0,0.22056824]
[1761925944106,0.005,110490.0,110480.0,0.70034866]
[1761925945404,0.005,110490.0,110480.0,0.69944366]
[1761925945616,0.004,110490.0,110480.0,0.69944366]
[1761925945833,0.18099587,110500.0,110480.0,0.69888348]
[1761925946057,0.24984243,110500.0,110480.0,0.21966324]
[1761925946262,0.19663185,110490.0,110480.0,0.016075]
[1761925946476,0.19663185,110490.0,110480.0,0.19710324]
[1761925946654,0.19763185,110490.0,110480.0,0.20210324]
[1761925947063,0.19763185,110490.0,110480.0,0.19610324]
[1761925947286,0.19663185,110490.0,110480.0,0.19610324]
[1761925947477,0.01662,110490.0,110480.0,0.20010324]
[1761925947674,0.18201185,110490.0,110480.0,0.22239411]
[1761925948505,0.001,110490.0,110480.0,0.22239411]
[1761925948707,0.18099587,110500.0,110490.0,0.18101185]
[1761925948909,0.19661587,110500.0,110490.0,0.19699185]
[1761925949037,0.19661587,110500.0,110490.0,0.18101185]
[1761925949247,0.21940587,110500.0,110490.0,0.18101185]
[1761925949646,0.1965548,110500.0,110490.0,0.01878]
[1761925949851,0.1975548,110500.0,110490.0,0.0038]
[1761925950055,0.2243448,110500.0,110490.0,0.0038]
[1761925950257,0.2243448,110500.0,110490.0,0.001]
[1761925950874,0.47889603,110500.0,110490.0,0.001]
[1761925951091,3.95867645,110500.0,110490.0,0.001]
[1761925951294,3.95867645,110500.0,110490.0,0.00121989]
[1761925951499,3.47889603,110500.0,110490.0,0.00121989]
[1761925952720,3.47889603,110500.0,110490.0,0.00058275]
[1761925953332,3.56871504,110500.0,110490.0,0.00058275]
[1761925953954,3.58819942,110500.0,110490.0,0.00058275]
[1761925954370,3.49838041,110500.0,110490.0,0.00058275]
[1761925954574,0.49838041,110500.0,110490.0,0.00058275]
[1761925955245,0.51257485,110500.0,110490.0,0.00058275]
[1761925955868,0.47422552,110500.0,110490.0,0.01656275]
[1761925956191,0.48984552,110500.0,110490.0,0.01656275]
[1761925956387,0.47036114,110500.0,110490.0,0.01656275]
[1761925956614,0.47036114,110500.0,110490.0,0.00058275]
[1761925957021,0.49117475,110500.0,110490.0,0.00058275]
[1761925957421,0.47036114,110500.0,110490.0,0.01656275]
[1761925957628,0.47036114,110500.0,110490.0,0.1975746]
[1761925957894,0.47036114,110500.0,110490.0,0.69991502]
[1761925957895,0.20864114,110500.0,110490.0,0.69991502]
[1761925958102,0.1944467,110500.0,110490.0,0.2201346]
[1761925958817,0.1944467,110500.0,110490.0,0.03912275]
[1761925959052,0.2100667,110500.0,110490.0,0.01656275]
[1761925959258,0.2100667,110500.0,110490.0,0.1975746]
[1761925959464,0.2100667,110500.0,110490.0,0.01656275]
[1761925959666,0.2100667,110500.0,110490.0,0.00058275]
[1761925959844,0.27320535,110500.0,110490.0,0.00058275]
[1761925960304,4.05238253,110500.0,110490.0,0.00058275]
[1761925960515,4.65468188,110500.0,110490.0,0.00058275]
[1761925960730,4.65268188,110500.0,110490.0,0.00058275]
[1761925961175,0.52102824,110480.0,110470.0,0.0290429]
[1761925961393,4.43198457,110480.0,110470.0,0.0290429]
[1761925961605,4.43198457,110480.0,110450.0,0.0004]
[1761925961606,3.57537194,110460.0,110450.0,0.0004]
[1761925961825,3.61379194,110460.0,110450.0,0.0004]
[1761925962818,3.64173504,110460.0,110450.0,0.00088318]
[1761925963034,3.64573504,110460.0,110450.0,0.00188318]
[1761925963310,3.73655405,110460.0,110450.0,0.00188318]
[1761925963517,4.49621126,110460.0,110450.0,0.00188318]
[1761925964639,4.49221126,110460.0,110450.0,0.00088318]
[1761925964850,4.49421126,110460.0,110450.0,0.00688318]
[1761925965333,4.49221126,110460.0,110450.0,0.00088318]
[1761925965561,4.49321126,110460.0,110450.0,0.00688318]
[1761925965781,4.49521126,110460.0,110450.0,0.00688318]
[1761925966001,4.49321126,110460.0,110450.0,0.00688318]
[1761925966441,4.49521126,110460.0,110450.0,0.00688318]
[1761925967392,4.47830921,110460.0,110450.0,0.00688318]
[1761925967841,4.47830921,110460.0,110450.0,0.00776309]
[1761925968110,3.75241289,110460.0,110450.0,0.00776309]
[1761925968337,3.75240883,110460.0,110450.0,0.00776309]
[1761925969257,3.73555405,110460.0,110450.0,0.00776309]
[1761925969899,4.47830921,110460.0,110450.0,0.00776309]
[1761925970820,4.49251533,110460.0,110450.0,0.00776309]
[1761925971571,4.50671643,110460.0,110450.0,0.00776309]
[1761925972018,3.58290026,110460.0,110450.0,0.00776309]
[1761925972221,3.58290026,110460.0,110450.0,0.1888405]
[1761925972422,3.56341509,110460.0,110450.0,0.00776309]
[1761925972631,3.54920897,110460.0,110450.0,0.1888405]
[1761925973509,3.5491609,110460.0,110450.0,0.1888405]
[1761925973727,3.5491609,110460.0,110450.0,0.00776309]
[1761925973939,3.54075104,110460.0,110450.0,0.00776309]
[1761925974243,3.54075104,110460.0,110440.0,0.0004]
[1761925974244,3.0,110450.0,110440.0,0.0004]
[1761925974390,0.1172314,110450.0,110440.0,0.0004]
[1761925974595,0.1401414,110450.0,110440.0,0.0004]
[1761925974796,0.05032239,110450.0,110440.0,0.00062003]
[1761925975470,0.05132239,110450.0,110440.0,0.00062003]
[1761925975740,0.05132239,110450.0,110440.0,0.00038803]
[1761925977060,0.05432239,110450.0,110440.0,0.00338803]
[1761925977681,0.03141239,110450.0,110440.0,0.01972803]
[1761925977883,0.00448239,110450.0,110440.0,0.78688319]
[1761925978022,0.05432239,110450.0,110440.0,0.00338803]
[1761925978241,0.14806556,110450.0,110440.0,0.00338803]
[1761925978926,3.14897167,110450.0,110440.0,0.00338803]
[1761925979126,3.14806556,110450.0,110440.0,0.00338803]
[1761925980319,3.73416556,110450.0,110440.0,0.00338803]
[1761925980645,4.48532137,110450.0,110440.0,0.00338803]
[1761925981061,4.29476113,110450.0,110440.0,0.00338803]
[1761925981269,4.29476045,110450.0,110440.0,0.00338803]
[1761925981865,4.31156113,110450.0,110440.0,0.00338803]
[1761925982877,4.30756113,110450.0,110440.0,0.00038803]
[1761925983052,4.30956113,110450.0,110440.0,0.00038803]
[1761925983269,4.31156113,110450.0,110440.0,0.00238803]
[1761925983673,4.30956113,110450.0,110440.0,0.00038803]
[1761925984026,3.34,110430.0,110420.0,0.0004]
[1761925984242,3.45674901,110430.0,110420.0,0.0004]
[1761925984460,4.22241417,110430.0,110420.0,0.0004]
[1761925984677,3.50733684,110430.0,110420.0,0.0004]
[1761925984874,4.250092,110430.0,110420.0,0.0004]
[1761925985016,4.26429506,110430.0,110420.0,0.0004]
[1761925985232,4.26529506,110430.0,110420.0,0.0004]
[1761925985432,4.27444654,110430.0,110420.0,0.0004]
[1761925985870,3.53169138,110430.0,110420.0,0.0004]
[1761925986213,3.54890287,110430.0,110420.0,0.0024]
[1761925986435,3.45908386,110430.0,110420.0,0.0024]
[1761925986558,3.43978179,110430.0,110420.0,0.0024]
[1761925986977,3.45908668,110430.0,110420.0,0.0024]
[1761925987902,3.4448774,110430.0,110420.0,0.0024]
[1761925991527,0.40776434,110430.0,110420.0,0.01918018]
[1761925991969,0.01237797,110430.0,110420.0,0.04217018]
[1761925992745,0.03992797,110430.0,110420.0,0.01918018]
[1761925993503,0.07122324,110430.0,110420.0,0.00284018]
[1761925993713,4.22512014,110430.0,110420.0,0.00284018]
[1761925993934,4.24449632,110430.0,110420.0,0.00284018]
[1761925994572,3.50174116,110430.0,110420.0,0.00284018]
[1761925994987,3.74784116,110430.0,110420.0,0.00284018]
[1761925996525,0.27785415,110430.0,110420.0,0.04116018]
[1761925996740,0.25847797,110430.0,110420.0,0.04116018]
[1761925997356,0.2501,110430.0,110420.0,0.04116018]
[1761925998944,0.2501,110430.0,110420.0,0.05927284]
[1761925999346,0.2501,110430.0,110420.0,0.802028]
[1761925999592,0.2501,110430.0,110420.0,0.78391534]
[1761926000347,0.26430008,110430.0,110420.0,0.78391534]
[1761926000800,0.01720008,110430.0,110420.0,0.78391534]
[1761926001027,0.01420008,110430.0,110420.0,0.78191534]
[1761926001475,0.01720008,110430.0,110420.0,0.82709762]
[1761926001698,0.003,110430.0,110420.0,0.83909761]
[1761926002132,0.003,110430.0,110420.0,0.84812832]
[1761926002345,0.003,110430.0,110420.0,0.83912832]
[1761926002573,0.00048239,110450.0,110420.0,0.83912832]
[1761926002803,0.003,110430.0,110420.0,0.06661298]
[1761926003021,0.003,110430.0,110420.0,0.07661297]
[1761926003232,0.003,110430.0,110420.0,0.09252297]
[1761926003490,0.003,110430.0,110420.0,0.11740315]
[1761926003934,0.003,110430.0,110420.0,0.86015831]
[1761926004165,0.00048239,110450.0,110430.0,0.05818226]
[1761926004386,0.00248239,110450.0,110440.0,0.75866516]
[1761926004606,0.00248239,110450.0,110440.0,0.83741609]
[1761926004833,0.00048239,110450.0,110440.0,0.83741609]
[1761926005069,0.00048239,110450.0,110440.0,0.87359837]
[1761926006054,0.00248239,110450.0,110440.0,0.87759837]
[1761926006230,0.00248239,110450.0,110440.0,0.90480132]
[1761926009652,0.00248239,110450.0,110440.0,0.91480131]
[1761926010736,0.00048239,110450.0,110440.0,0.91080131]
[1761926011199,0.00348239,110450.0,110440.0,0.92380131]
[1761926011381,0.00348239,110450.0,110440.0,0.91380132]
[1761926011596,0.00048239,110450.0,110440.0,0.90080132]
[1761926011827,0.00348239,110450.0,110440.0,0.92580131]
[1761926012052,0.00348239,110450.0,110440.0,0.92680131]
[1761926013106,0.00048239,110450.0,110440.0,0.91180131]
[1761926013313,0.00248239,110450.0,110440.0,0.92180131]
[1761926013769,0.00248239,110450.0,110440.0,0.91180132]
[1761926014190,0.00248239,110450.0,110440.0,0.92180131]
[1761926015279,0.00248239,110450.0,110440.0,0.88331323]
[1761926015418,0.00248239,110450.0,110440.0,0.85611419]
[1761926015652,0.00248239,110450.0,110440.0,0.82891515]
[1761926015851,0.00248239,110450.0,110440.0,0.80171611]
[1761926016123,0.00248239,110450.0,110440.0,0.77451707]
[1761926016124,0.07186093,110450.0,110440.0,0.77451707]
[1761926016292,0.00248239,110450.0,110440.0,0.74731803]
[1761926016466,0.00248239,110450.0,110440.0,0.7473194]
[1761926016813,0.00248239,110450.0,110440.0,0.72012036]
[1761926017050,0.00248239,110450.0,110440.0,0.80686556]
[1761926017251,0.00248239,110450.0,110440.0,0.75246748]
[1761926017397,0.00248239,110450.0,110440.0,0.72526844]
[1761926017830,0.00248239,110450.0,110440.0,0.77145071]
[1761926018720,0.00248239,110450.0,110440.0,3.7834507]
[1761926019534,0.00248239,110450.0,110440.0,3.85130647]
[1761926019749,0.00048239,110450.0,110440.0,3.85130647]
[1761926020169,0.00348239,110450.0,110440.0,3.86330647]
[1761926020701,0.00348239,110450.0,110440.0,3.7954507]
[1761926021118,0.00448239,110450.0,110440.0,3.7984507]
[1761926021352,0.00448239,110450.0,110440.0,4.0329823]
[1761926023999,0.00448239,110450.0,110440.0,4.10040789]
[1761926024204,0.00448239,110450.0,110440.0,4.10240789]
[1761926024629,0.00448239,110450.0,110440.0,4.10040789]
[1761926024858,0.00448239,110450.0,110440.0,4.10240789]
[1761926025151,0.00448239,110450.0,110440.0,1.02298231]
[1761926025769,0.00448239,110450.0,110440.0,1.0329823]
[1761926025985,0.00448239,110450.0,110440.0,4.0329823]
[1761926028366,0.00448239,110450.0,110440.0,4.10009733]
[1761926029035,0.00126054,110480.0,110470.0,0.03618228]
[1761926029254,0.00126054,110480.0,110470.0,1.35423154]
[1761926029461,0.00126054,110480.0,110470.0,1.40856132]
[1761926029663,0.00126054,110480.0,110470.0,1.44660727]
[1761926030327,0.00326054,110480.0,110470.0,1.45060727]
[1761926031159,0.00326054,110480.0,110470.0,1.44060728]
[1761926031375,0.00326054,110480.0,110470.0,1.44260728]
[1761926031583,0.00326054,110480.0,110470.0,1.45260727]
[1761926033472,0.00326054,110480.0,110470.0,1.45060727]
[1761926033889,0.00326054,110480.0,110470.0,0.96070726]
[1761926034558,0.00326054,110480.0,110470.0,0.97070725]
[1761926034758,0.00326054,110480.0,110470.0,1.44060728]
[1761926035535,0.00326054,110480.0,110470.0,0.59351858]
[1761926035719,0.00326054,110480.0,110470.0,0.557335]
[1761926036751,0.00326054,110480.0,110470.0,1.03723502]
[1761926037123,0.00326054,110480.0,110470.0,0.557335]
[1761926037931,0.03618228,110530.0,110500.0,0.47990002]
[1761926038145,0.0122,110520.0,110500.0,0.47990002]
[1761926038364,0.02058793,110520.0,110490.0,0.5794605]
[1761926038574,0.01538,110510.0,110500.0,0.51346956]
[1761926038811,0.00838793,110510.0,110500.0,0.49537002]
[1761926039005,0.00838793,110510.0,110500.0,0.51799002]
[1761926039209,0.00838793,110510.0,110500.0,0.51999002]
[1761926039408,0.03596793,110510.0,110500.0,0.48190002]
[1761926039561,0.03596793,110510.0,110490.0,0.60665321]
[1761926039774,0.03596793,110510.0,110500.0,0.01547]
[1761926039999,0.04196793,110510.0,110500.0,0.01747]
[1761926040292,0.01438793,110510.0,110500.0,0.01747]
[1761926040510,0.04196793,110510.0,110500.0,0.03531925]
[1761926040706,0.01438793,110510.0,110500.0,0.01747]
[1761926040929,0.01438793,110510.0,110500.0,0.51546956]
[1761926041061,0.00839518,110510.0,110500.0,0.49537002]
[1761926041665,0.00839518,110510.0,110500.0,0.51799002]
[1761926041892,0.01239518,110510.0,110500.0,0.51799002]
[1761926042310,0.00839518,110510.0,110500.0,0.51799002]
[1761926042752,0.01239518,110510.0,110500.0,0.51999002]
[1761926043727,0.01305473,110510.0,110500.0,0.51999002]
[1761926044396,0.01305473,110510.0,110500.0,0.51799002]
[1761926044607,0.00905473,110510.0,110500.0,0.51799002]
[1761926045017,0.00065955,110510.0,110500.0,0.51899002]
[1761926045379,0.00165955,110510.0,110500.0,0.52199002]
[1761926052442,0.00165955,110510.0,110500.0,1.00189004]
[1761926052648,0.00165955,110510.0,110500.0,0.52199002]
[1761926054333,0.00165955,110510.0,110500.0,1.4000723]
[1761926054951,0.00065955,110510.0,110500.0,1.3970723]
[1761926055375,0.00065955,110510.0,110500.0,4.3960723]
[1761926055583,0.00165955,110510.0,110500.0,4.3980723]
[1761926055790,0.00165955,110510.0,110500.0,4.4010723]
[1761926056805,0.00065955,110510.0,110500.0,4.3990723]
[1761926057215,0.00065955,110510.0,110500.0,4.4070723]
[1761926057420,0.00265955,110510.0,110500.0,4.4070723]
[1761926062021,0.00265955,110510.0,110500.0,4.5024523]
[1761926062244,0.00265955,110510.0,110500.0,4.5568523]
[1761926062456,0.00265955,110510.0,110500.0,4.56047596]
[1761926062661,0.00265955,110510.0,110500.0,4.57047595]
[1761926063717,0.00265955,110510.0,110500.0,4.56047596]
[1761926063931,0.00265955,110510.0,110500.0,4.51607595]
[1761926064339,0.00265955,110510.0,110500.0,4.51407595]
[1761926064540,0.00265955,110510.0,110500.0,4.51607595]
[1761926065385,0.00265955,110510.0,110500.0,4.51407595]
[1761926065591,0.00153758,110510.0,110500.0,4.51607595]
[1761926065798,0.0002,110560.0,110530.0,0.01199999]
[1761926066012,0.0002,110560.0,110550.0,0.58386962]
[1761926066226,0.0002,110560.0,110550.0,1.06376964]
[1761926066436,0.0002,110560.0,110550.0,1.08947964]
[1761926067094,0.00234481,110560.0,110550.0,1.08947964]
[1761926067337,0.00134481,110560.0,110550.0,1.42947964]
[1761926067549,0.00034481,110560.0,110550.0,1.42947964]
[1761926067758,0.00034481,110560.0,110550.0,1.43247964]
[1761926067973,0.00134481,110560.0,110550.0,1.43247964]
[1761926068452,0.00134481,110560.0,110550.0,0.95257962]
[1761926068645,0.00134481,110560.0,110550.0,0.95157962]
[1761926069063,0.00134481,110560.0,110550.0,0.4716796]
[1761926069271,0.00134481,110560.0,110550.0,0.95157962]
[1761926070525,0.00134481,110560.0,110550.0,1.43147964]
[1761926070743,0.00134481,110560.0,110550.0,1.43347964]
[1761926071583,0.00244341,110560.0,110550.0,1.43347964]
[1761926072633,0.00244341,110560.0,110550.0,0.95357962]
[1761926072842,0.00244341,110560.0,110550.0,0.95157962]
[1761926074085,0.00244341,110560.0,110550.0,0.4716796]
[1761926074307,0.00244341,110560.0,110550.0,0.95157962]
[1761926075154,0.00244341,110560.0,110550.0,0.61157962]
[1761926079538,0.00244341,110560.0,110550.0,1.09147964]
[1761926082589,0.00244341,110560.0,110550.0,0.61157962]
[1761926083441,0.01894341,110560.0,110550.0,0.1079696]
[1761926083668,0.04329341,110560.0,110550.0,0.01452]
[1761926084073,0.04329341,110560.0,110550.0,0.004]
[1761926084491,0.01794341,110560.0,110550.0,0.01654]
[1761926084918,0.05065569,110560.0,110550.0,0.001]
[1761926086011,0.05865569,110560.0,110550.0,0.002]
[1761926086240,0.05965569,110560.0,110550.0,0.002]
[1761926086674,0.02630569,110560.0,110550.0,0.01554]
[1761926086879,0.02830569,110560.0,110550.0,0.01554]
[1761926087548,0.03830569,110560.0,110550.0,0.01754]
[1761926087731,0.06265569,110560.0,110550.0,0.002]
[1761926088186,0.09883797,110560.0,110550.0,0.002]
[1761926089423,0.12029996,110560.0,110550.0,0.002]
[1761926089641,0.03618228,110550.0,110520.0,0.12926587]
[1761926089855,0.03583,110550.0,110520.0,0.84735003]
[1761926090112,0.03583,110550.0,110520.0,0.85298376]
[1761926090540,0.03583,110550.0,110520.0,0.1029796]
[1761926090541,0.02719,110530.0,110520.0,0.1029796]
[1761926090924,0.02719,110530.0,110520.0,0.1049796]
[1761926091179,0.05154,110530.0,110520.0,0.0894396]
[1761926091384,0.02719,110530.0,110520.0,0.1049796]
[1761926091614,0.05154,110530.0,110520.0,0.01252]
[1761926091824,0.05154,110530.0,110520.0,0.002]
[1761926092461,0.02719,110530.0,110520.0,0.01754]
[1761926092670,0.02819,110530.0,110520.0,0.01554]
[1761926092874,0.05654,110530.0,110520.0,0.001]
[1761926093476,0.08872228,110530.0,110490.0,0.11119048]
[1761926093746,0.0165,110510.0,110490.0,0.11119048]
[1761926094175,0.04085,110510.0,110490.0,0.11119048]
[1761926094387,0.04085,110510.0,110490.0,0.10300048]
[1761926094388,0.0165,110500.0,110490.0,0.10300048]
[1761926095029,0.01425497,110530.0,110490.0,0.12673048]
[1761926095251,0.03874973,110530.0,110490.0,0.12673048]
[1761926096099,0.03674973,110530.0,110490.0,0.12673048]
[1761926096320,0.12656874,110530.0,110490.0,0.12673048]
[1761926096942,0.001,110510.0,110490.0,0.12673048]
[1761926097347,0.001,110510.0,110500.0,0.01554]
[1761926097348,0.0165,110510.0,110500.0,0.01554]
[1761926097835,0.0165,110510.0,110490.0,0.11219048]
[1761926098042,0.0165,110510.0,110490.0,0.11119048]
[1761926098379,0.0225,110510.0,110490.0,0.11219048]
[1761926098587,0.006,110510.0,110500.0,0.03927]
[1761926098787,0.006,110510.0,110500.0,0.01554]
[1761926099219,0.008,110510.0,110500.0,0.01554]
[1761926099373,0.008,110510.0,110500.0,0.03927]
[1761926099574,0.38138476,110530.0,110500.0,0.03927]
[1761926099778,0.0185,110510.0,110500.0,0.01554]
[1761926100586,0.002,110510.0,110500.0,0.03927]
[1761926100847,0.0185,110510.0,110490.0,0.08746048]
[1761926101080,0.0185,110510.0,110490.0,0.11119048]
[1761926101702,0.0265,110510.0,110500.0,0.001]
[1761926101907,0.01,110510.0,110500.0,0.98117917]
[1761926102075,0.002,110510.0,110500.0,0.9358873]
[1761926102290,0.00014476,110530.0,110520.0,0.18096272]
[1761926102456,0.00014476,110530.0,110520.0,0.20819272]
[1761926102807,0.00014476,110530.0,110520.0,0.23192272]
[1761926103012,0.01664476,110530.0,110520.0,0.20819272]
[1761926103220,0.2144811,110530.0,110520.0,0.18096272]
[1761926103944,0.18096272,110520.0,110510.0,0.1809643]
[1761926104172,0.18097909,110510.0,110500.0,0.001]
[1761926104385,0.29580968,110510.0,110500.0,0.001]
[1761926104587,0.29580968,110510.0,110500.0,0.18199547]
[1761926104790,0.29580968,110510.0,110500.0,0.001]
[1761926105165,0.29580968,110510.0,110480.0,0.21378097]
[1761926105373,0.18099565,110500.0,110480.0,0.21378097]
[1761926105689,0.18099547,110500.0,110490.0,0.1810109]
[1761926105897,0.19749547,110500.0,110490.0,0.01169]
[1761926106380,0.19749547,110500.0,110490.0,0.02723]
[1761926106595,0.19749547,110500.0,110480.0,0.21378097]
[1761926106814,0.18101185,110490.0,110480.0,0.02373]
[1761926107063,0.17604524,110490.0,110470.0,0.10868192]
[1761926107305,0.19752824,110480.0,110470.0,0.0395629]
[1761926107539,0.21441824,110480.0,110470.0,0.0290429]
[1761926108198,0.55446646,110480.0,110470.0,0.0290429]
[1761926108664,0.55446646,110480.0,110470.0,0.03052306]
[1761926108921,0.59064874,110480.0,110470.0,0.03052306]
[1761926109121,1.3324629,110480.0,110470.0,0.03052306]
[1761926109363,1.42228191,110480.0,110470.0,0.03052306]
[1761926110078,1.42328191,110480.0,110470.0,0.03052306]
[1761926110296,1.4313597,110480.0,110470.0,0.03052306]
[1761926110539,1.4333597,110480.0,110470.0,0.03052306]
[1761926110797,1.44856151,110480.0,110470.0,0.03052306]
[1761926111030,1.45156151,110480.0,110470.0,0.03152306]
[1761926111264,5.61992834,110480.0,110470.0,0.03152306]
[1761926111530,2.24374606,110480.0,110470.0,0.03152306]
[1761926111740,0.21777827,110480.0,110470.0,0.03152306]
[1761926111963,0.55777827,110480.0,110470.0,0.03152306]
[1761926112641,0.54357646,110480.0,110470.0,0.03152306]
[1761926113161,0.56046646,110480.0,110470.0,0.03152306]
[1761926113398,1.41046407,110480.0,110470.0,0.03152306]
[1761926113596,3.40746407,110480.0,110470.0,0.03052306]
[1761926114496,3.40946407,110480.0,110470.0,0.03052306]
[1761926115268,3.37528179,110480.0,110470.0,0.03252306]
[1761926115525,3.42566229,110480.0,110470.0,0.03252306]
[1761926115972,3.35366112,110480.0,110470.0,0.03252306]
[1761926116638,3.3394629,110480.0,110470.0,0.03252306]
[1761926117724,2.59764874,110480.0,110470.0,0.03252306]
[1761926117944,3.3394629,110480.0,110470.0,0.03252306]
[1761926118183,3.3414629,110480.0,110470.0,0.03252306]
[1761926118400,3.44347971,110480.0,110470.0,0.03252306]
[1761926118835,3.40729743,110480.0,110470.0,0.03252306]
[1761926119481,3.45177898,110480.0,110470.0,0.03252306]
[1761926120572,3.45377898,110480.0,110470.0,0.03252306]
[1761926120783,3.45177898,110480.0,110470.0,0.03252306]
[1761926121167,3.45377898,110480.0,110470.0,0.03252306]
[1761926121397,3.45177898,110480.0,110470.0,0.03252306]
[1761926122248,3.45179068,110480.0,110470.0,0.03252306]
[1761926122789,3.43759288,110480.0,110470.0,0.03252306]
[1761926123396,2.69577872,110480.0,110470.0,0.03252306]
[1761926123611,3.43759288,110480.0,110470.0,0.03252306]
[1761926124028,3.45422498,110480.0,110470.0,0.03252306]
[1761926124395,3.45622498,110480.0,110470.0,0.03252306]
[1761926124747,3.45422498,110480.0,110470.0,0.03252306]
[1761926125124,3.45622498,110480.0,110470.0,0.03252306]
[1761926125328,3.45422498,110480.0,110470.0,0.03252306]
[1761926125530,3.45622498,110480.0,110470.0,0.03252306]
[1761926125750,2.72660874,110480.0,110470.0,0.03252306]
[1761926125949,2.6509916,110480.0,110470.0,0.03252306]
[1761926126178,2.6343595,110480.0,110470.0,0.03252306]
[1761926126733,2.65100856,110480.0,110470.0,0.03252306]
[1761926127149,3.39282267,110480.0,110470.0,0.03252306]
[1761926128563,3.48042597,110480.0,110470.0,0.03252306]
[1761926128796,0.1810938,110440.0,110420.0,0.24481984]
[1761926129001,0.1810938,110440.0,110420.0,0.19050891]
[1761926129002,0.1895602,110430.0,110420.0,0.19050891]
[1761926129220,0.2051302,110430.0,110420.0,0.0004]
[1761926129441,0.5620202,110430.0,110420.0,0.0004]
[1761926129666,0.5451302,110430.0,110420.0,0.01696]
[1761926129868,0.5451302,110430.0,110420.0,0.0004]
[1761926130070,0.54517838,110430.0,110420.0,0.02196]
[1761926130282,0.56206838,110430.0,110420.0,0.0054]
[1761926130808,0.54517838,110430.0,110420.0,0.006495]
[1761926131051,0.56206838,110430.0,110420.0,0.006495]
[1761926131259,0.56206838,110430.0,110420.0,0.004495]
[1761926131616,0.56306838,110430.0,110420.0,0.004495]
[1761926132641,0.1811266,110420.0,110410.0,0.0004]
[1761926132787,0.1966966,110420.0,110410.0,0.19810301]
[1761926133993,0.1986966,110420.0,110410.0,0.01996]
[1761926134187,0.1986966,110420.0,110410.0,0.20110301]
[1761926134387,0.01757,110420.0,110410.0,0.20110301]
[1761926134588,0.1831266,110420.0,110410.0,0.20110301]
[1761926134792,0.002,110420.0,110410.0,0.20242347]
[1761926135031,0.1986966,110420.0,110410.0,0.20242347]
[1761926135641,0.1986966,110420.0,110410.0,0.02128046]
[1761926136095,1.45839922,110420.0,110410.0,0.00432046]
[1761926136332,1.38387972,110420.0,110410.0,0.00432046]
[1761926137083,1.39083799,110420.0,110410.0,0.00232046]
[1761926137312,1.39083799,110420.0,110410.0,0.00132046]
[1761926137539,1.39383799,110420.0,110410.0,0.00332046]
[1761926137998,1.39483799,110420.0,110410.0,0.00332046]
[1761926138235,1.52083928,110420.0,110410.0,0.00332046]
[1761926138889,1.53753835,110420.0,110410.0,0.00332046]
[1761926139118,1.53753835,110420.0,110410.0,0.00241546]
[1761926139340,1.53753835,110420.0,110410.0,0.00151215]
[1761926140033,3.55677349,110420.0,110410.0,0.00151215]
[1761926140496,3.55174386,110420.0,110410.0,0.00151215]
[1761926141641,3.79784386,110420.0,110410.0,0.00151215]
[1761926141904,3.55174386,110420.0,110410.0,0.00151215]
[1761926142122,3.57297641,110420.0,110410.0,0.00151215]
[1761926142374,3.58718594,110420.0,110410.0,0.00151215]
[1761926142813,3.58518594,110420.0,110410.0,0.00151215]
[1761926143536,0.18114301,110410.0,110400.0,0.0004]
[1761926143780,0.21481301,110410.0,110400.0,0.0004]
[1761926143973,0.55481301,110410.0,110400.0,0.0004]
[1761926144176,0.55481301,110410.0,110400.0,0.00062015]
[1761926144381,1.03582695,110410.0,110400.0,0.00062015]
[1761926144845,1.03582695,110410.0,110400.0,0.00262015]
[1761926144846,1.18351808,110410.0,110400.0,0.00262015]
[1761926145049,3.68375876,110410.0,110400.0,0.00262015]
[1761926145458,3.68475876,110410.0,110400.0,0.00262015]
[1761926145667,3.4851873,110400.0,110390.0,0.0004]
[1761926145872,3.5188573,110400.0,110390.0,0.0004]
[1761926146079,3.66154036,110400.0,110390.0,0.0004]
[1761926146286,3.67875596,110400.0,110390.0,0.0004]
[1761926146922,3.69296765,110400.0,110390.0,0.0004]
[1761926147365,3.60314864,110400.0,110390.0,0.0004]
[1761926147553,2.64112076,110400.0,110390.0,0.0004]
[1761926147708,3.60314864,110400.0,110390.0,0.0004]
[1761926147918,3.60314864,110400.0,110390.0,0.0024]
[1761926148121,3.68171495,110400.0,110390.0,0.0024]
[1761926148347,3.77353396,110400.0,110390.0,0.0024]
[1761926149116,3.77153396,110400.0,110390.0,0.0024]
[1761926149741,0.52119224,110380.0,110370.0,0.0004]
[1761926149956,1.05465846,110380.0,110370.0,0.0004]
[1761926150176,3.07205846,110380.0,110370.0,0.0004]
[1761926150403,1.51943524,110360.0,110350.0,0.0004]
[1761926150644,1.53770524,110360.0,110350.0,0.0004]
[1761926150869,1.55310524,110360.0,110350.0,0.0004]
[1761926151090,1.55310524,110360.0,110340.0,0.0022]
[1761926151091,2.55742378,110350.0,110340.0,1e-08]
[1761926151310,3.0810393,110350.0,110340.0,1e-08]
[1761926151519,3.32366378,110350.0,110340.0,1e-08]
[1761926151734,3.34228682,110350.0,110340.0,1e-08]
[1761926151951,2.89042164,110350.0,110340.0,1e-08]
[1761926152187,2.90042163,110350.0,110340.0,1e-08]
[1761926152393,2.88127286,110350.0,110340.0,1e-08]
[1761926152614,2.90040005,110350.0,110340.0,1e-08]
[1761926152828,2.90340005,110350.0,110340.0,1e-08]
[1761926153908,2.55945663,110330.0,110320.0,8e-05]